{"text_format":"3","workbook":"xlsx","n_sheets":2,"sheets":["Início","Fatura de serviços"],"not_rendered":{"images":1,"defined_names":1},"read":"whole","date_system":"1900"}

{"sheet":"Início","index":0,"n_rows":8,"n_cols":2,"rows_kept":8}
[null,"SOBRE ESTE MODELO"]
[null,"Use este modelo para criar uma Fatura de Serviços."]
[null,"Preencha o número da fatura, a data, o nome da empresa, o endereço, o slogan e os detalhes para cobrança."]
[null,"Digite as informações nas tabelas."]
[null,"O total é calculado automaticamente para você."]
[null,"Observação: "]
[null,"Instruções adicionais foram fornecidas na coluna A, na planilha FATURA DE SERVIÇOS. Este texto está oculto de propósito. Para removê-lo, selecione a coluna A e selecione Excluir. Para reexibir o texto, selecione a coluna A e altere a cor da fonte."]
[null,"Para saber mais sobre tabelas, pressione SHIFT e F10 dentro de uma tabela, selecione a opção TABELA e, em seguida, selecione TEXTO ALTERNATIVO."]

{"sheet":"Fatura de serviços","index":1,"n_rows":43,"n_cols":5,"rows_kept":43,"merged":[[0,1,0,2],[0,3,0,4],[1,1,1,4],[2,1,2,3],[3,1,3,3],[4,1,4,2],[5,1,5,2],[6,1,6,2],[7,1,7,2],[41,1,41,2],[41,3,41,4],[42,1,42,4]]}
["Crie uma fatura de serviços nesta planilha. Digite o logotipo da empresa na célula à direita, e o título desta planilha na célula D1. Instruções úteis sobre como usar esta planilha estão nas células desta coluna. A próxima instrução está na célula A3.","O espaço reservado para o logotipo está nesta célula.",null,"FATURA"]
[]
["Insira o nome da empresa na célula à direita.","Nome da empresa"]
["Digite o slogan da empresa na célula à direita.","Slogan da empresa"]
["Digite o endereço da empresa na célula à direita, e o número da fatura na célula E5.","Endereço",null,"Nº DA FATURA","Nº"]
["Digite cidade, o estado e o CEP na célula à direita, e a data na célula E6.","Cidade, estado, CEP",null,"DATA ",{"$f":"TODAY()","v":"2019-04-19"}]
["Digite os números de telefone e fax na célula à direita, e o ID na célula E7.","Telefone Fax",null,"ID DO CLIENTE ","ID"]
["Digite o endereço de email na célula à direita.","Email"]
["O rótulo “para” está na célula à direita. Preencha os detalhes de cobrança como nome, nome da empresa, endereço e número de telefone nas células C9 a C13. A próxima instrução está na célula A14.","PARA","Nome"]
[null,null,"Nome da empresa"]
[null,null,"Endereço"]
[null,null,"Cidade, estado, CEP"]
[null,null,"Telefone"]
["Insira as informações na tabela de detalhes de vendas, começando na célula à direita. A próxima instrução está na célula A17.","VENDEDOR","SERVIÇO","TERMOS DE PAGAMENTO","DATA DE PAGAMENTO"]
[{"$nulls":3},"Pagar ao receber"]
[]
["Insira as informações na tabela de faturas, começando na célula à direita. O subtotal e o total são calculados automaticamente. A próxima instrução está na célula A42.","QUANTIDADE","DESCRIÇÃO","PREÇO UNITÁRIO","TOTAL DA LINHA"]
[{"$nulls":4},{"$f":"IF(SUM(B18)>0,SUM(B18*'Fatura de serviços'!$D18),\"\")","v":""}]
[{"$nulls":4},{"$f":"IF(SUM(B19)>0,SUM(B19*'Fatura de serviços'!$D19),\"\")","v":""}]
[{"$nulls":4},{"$f":"IF(SUM(B20)>0,SUM(B20*'Fatura de serviços'!$D20),\"\")","v":""}]
[{"$nulls":4},{"$f":"IF(SUM(B21)>0,SUM(B21*'Fatura de serviços'!$D21),\"\")","v":""}]
[{"$nulls":4},{"$f":"IF(SUM(B22)>0,SUM(B22*'Fatura de serviços'!$D22),\"\")","v":""}]
[{"$nulls":4},{"$f":"IF(SUM(B23)>0,SUM(B23*'Fatura de serviços'!$D23),\"\")","v":""}]
[{"$nulls":4},{"$f":"IF(SUM(B24)>0,SUM(B24*'Fatura de serviços'!$D24),\"\")","v":""}]
[{"$nulls":4},{"$f":"IF(SUM(B25)>0,SUM(B25*'Fatura de serviços'!$D25),\"\")","v":""}]
[{"$nulls":4},{"$f":"IF(SUM(B26)>0,SUM(B26*'Fatura de serviços'!$D26),\"\")","v":""}]
[{"$nulls":4},{"$f":"IF(SUM(B27)>0,SUM(B27*'Fatura de serviços'!$D27),\"\")","v":""}]
[{"$nulls":4},{"$f":"IF(SUM(B28)>0,SUM(B28*'Fatura de serviços'!$D28),\"\")","v":""}]
[{"$nulls":4},{"$f":"IF(SUM(B29)>0,SUM(B29*'Fatura de serviços'!$D29),\"\")","v":""}]
[{"$nulls":4},{"$f":"IF(SUM(B30)>0,SUM(B30*'Fatura de serviços'!$D30),\"\")","v":""}]
[{"$nulls":4},{"$f":"IF(SUM(B31)>0,SUM(B31*'Fatura de serviços'!$D31),\"\")","v":""}]
[{"$nulls":4},{"$f":"IF(SUM(B32)>0,SUM(B32*'Fatura de serviços'!$D32),\"\")","v":""}]
[{"$nulls":4},{"$f":"IF(SUM(B33)>0,SUM(B33*'Fatura de serviços'!$D33),\"\")","v":""}]
[{"$nulls":4},{"$f":"IF(SUM(B34)>0,SUM(B34*'Fatura de serviços'!$D34),\"\")","v":""}]
[{"$nulls":4},{"$f":"IF(SUM(B35)>0,SUM(B35*'Fatura de serviços'!$D35),\"\")","v":""}]
[{"$nulls":4},{"$f":"IF(SUM(B36)>0,SUM(B36*'Fatura de serviços'!$D36),\"\")","v":""}]
[{"$nulls":4},{"$f":"IF(SUM(B37)>0,SUM(B37*'Fatura de serviços'!$D37),\"\")","v":""}]
[{"$nulls":3},"SUBTOTAL",{"$f":"IF(SUM(E18:E37)>0,SUM(E18:E37),\"\")","v":""}]
[{"$nulls":3},"IMPOSTO"]
[{"$nulls":3},"TOTAL",{"$f":"IF(SUM(E38)>0,SUM((E38*E39)+E38),\"\")","v":""}]
[]
["O nome da empresa é atualizado automaticamente na célula D42.","Emitir todos os cheques nominais à ordem de",null,{"$f":"B3","v":"Nome da empresa"}]
["A mensagem de agradecimento está na célula à direita.","AGRADECEMOS A PREFERÊNCIA!"]